[Event "Live Chess"]
[Site "Chess.com"]
[Date "2024.06.02"]
[Round "-"]
[White "NeilDruggan73"]
[Black "KGreenGator"]
[Result "1/2-1/2"]
[WhiteElo "1779"]
[BlackElo "1760"]
[TimeControl "300"]
[EndTime "18:40:31 PDT"]
[Termination "Game drawn by stalemate"]

1. d4 {[%clk 0:04:44.9]} 1... d5 {[%clk 0:04:57.9]} 2. Bg5 {[%clk 0:04:42.5]}
2... h6 {[%clk 0:04:50.8]} 3. Bh4 {[%clk 0:04:40.2]} 3... Nc6 {[%clk 0:04:47.4]}
4. e3 {[%clk 0:04:37.6]} 4... g5 {[%clk 0:04:42.1]} 5. Bg3 {[%clk 0:04:35.4]}
5... h5 {[%clk 0:04:40.6]} 6. h3 {[%clk 0:04:28.1]} 6... Bf5 {[%clk 0:04:33.8]}
7. Bd3 {[%clk 0:04:25.2]} 7... Bxd3 {[%clk 0:04:24.5]} 8. Qxd3 {[%clk
0:04:23.8]} 8... Nf6 {[%clk 0:04:20.5]} 9. Nd2 {[%clk 0:04:16.3]} 9... a6 {[%clk
0:04:17.3]} 10. c3 {[%clk 0:04:14.3]} 10... Bg7 {[%clk 0:04:12]} 11. Ngf3 {[%clk
0:04:13.1]} 11... g4 {[%clk 0:04:06.5]} 12. hxg4 {[%clk 0:04:08.6]} 12... hxg4
{[%clk 0:04:05.1]} 13. Rxh8+ {[%clk 0:04:06.1]} 13... Bxh8 {[%clk 0:04:03.9]}
14. Ne5 {[%clk 0:04:04]} 14... e6 {[%clk 0:03:45]} 15. Bh4 {[%clk 0:04:00]}
15... Qd6 {[%clk 0:03:36.2]} 16. f4 {[%clk 0:03:44.4]} 16... gxf3 {[%clk
0:03:33.3]} 17. Ndxf3 {[%clk 0:03:38.2]} 17... O-O-O {[%clk 0:03:28.5]} 18.
O-O-O {[%clk 0:03:33.6]} 18... Bg7 {[%clk 0:03:23.9]} 19. Ng5 {[%clk 0:03:29.1]}
19... Rf8 {[%clk 0:03:01.9]} 20. Ngxf7 {[%clk 0:03:21.4]} 20... Qe7 {[%clk
0:02:56.9]} 21. Nxc6 {[%clk 0:03:17.8]} 21... bxc6 {[%clk 0:02:55.2]} 22. Ne5
{[%clk 0:03:16.3]} 22... Qd6 {[%clk 0:02:49.3]} 23. Qxa6+ {[%clk 0:03:13.2]}
23... Kd8 {[%clk 0:02:47.8]} 24. Qa8+ {[%clk 0:02:57.6]} 24... Ke7 {[%clk
0:02:46.1]} 25. Ng6+ {[%clk 0:02:55.7]} 25... Kf7 {[%clk 0:02:44]} 26. Nxf8
{[%clk 0:02:52.7]} 26... Bxf8 {[%clk 0:02:41.3]} 27. Bxf6 {[%clk 0:02:48.5]}
27... Kxf6 {[%clk 0:02:39.6]} 28. Rf1+ {[%clk 0:02:44.1]} 28... Kg7 {[%clk
0:02:38.3]} 29. Qe8 {[%clk 0:02:38.1]} 29... Qe7 {[%clk 0:02:35.9]} 30. Qh5
{[%clk 0:02:32.7]} 30... c5 {[%clk 0:02:19.4]} 31. Rf3 {[%clk 0:02:30.2]} 31...
cxd4 {[%clk 0:02:16.1]} 32. Rg3+ {[%clk 0:02:24.3]} 32... Kf6 {[%clk 0:02:14.6]}
33. Qh4+ {[%clk 0:02:00.6]} 33... Kf7 {[%clk 0:02:12.1]} 34. Qh5+ {[%clk
0:01:58.2]} 34... Kf6 {[%clk 0:02:10.7]} 35. Qg6+ {[%clk 0:01:39]} 35... Ke5
{[%clk 0:02:08.4]} 36. exd4+ {[%clk 0:01:31.4]} 36... Kd6 {[%clk 0:02:06.6]} 37.
Kc2 {[%clk 0:01:21.9]} 37... c5 {[%clk 0:02:02.1]} 38. dxc5+ {[%clk 0:01:16.1]}
38... Kxc5 {[%clk 0:02:00.8]} 39. Qd3 {[%clk 0:01:13.3]} 39... Qd6 {[%clk
0:01:51.4]} 40. Rg4 {[%clk 0:01:06.1]} 40... Bh6 {[%clk 0:01:37.6]} 41. Ra4
{[%clk 0:00:52.3]} 41... Qh2 {[%clk 0:01:23.4]} 42. Ra5+ {[%clk 0:00:47.8]}
42... Kd6 {[%clk 0:01:20.1]} 43. Ra6+ {[%clk 0:00:44.1]} 43... Ke5 {[%clk
0:01:18.1]} 44. Qe2+ {[%clk 0:00:41.9]} 44... Kf4 {[%clk 0:01:12.8]} 45. Rxe6
{[%clk 0:00:39.5]} 45... Qh4 {[%clk 0:00:59.8]} 46. Qf3+ {[%clk 0:00:36.4]}
46... Kg5 {[%clk 0:00:58.4]} 47. Qxd5+ {[%clk 0:00:29.7]} 47... Kf4 {[%clk
0:00:55.1]} 48. Qe5+ {[%clk 0:00:26.6]} 48... Kg4 {[%clk 0:00:51.5]} 49. Rg6+
{[%clk 0:00:24.9]} 49... Bg5 {[%clk 0:00:49.8]} 50. Qe4+ {[%clk 0:00:19.2]}
50... Kh5 {[%clk 0:00:48.2]} 51. Qxh4+ {[%clk 0:00:15.8]} 51... Kxh4 {[%clk
0:00:45.2]} 52. Rxg5 {[%clk 0:00:15.1]} 52... Kxg5 {[%clk 0:00:44.1]} 53. c4
{[%clk 0:00:14.5]} 53... Kg4 {[%clk 0:00:44]} 54. c5 {[%clk 0:00:13.3]} 54...
Kg3 {[%clk 0:00:43.9]} 55. c6 {[%clk 0:00:12.7]} 55... Kxg2 {[%clk 0:00:43.8]}
56. c7 {[%clk 0:00:12.1]} 56... Kf3 {[%clk 0:00:43.7]} 57. c8=Q {[%clk
0:00:11.2]} 57... Ke4 {[%clk 0:00:43.6]} 58. Qd7 {[%clk 0:00:10.5]} 58... Ke5
{[%clk 0:00:42.1]} 59. b3 {[%clk 0:00:10.2]} 59... Kf6 {[%clk 0:00:41.7]} 60. b4
{[%clk 0:00:09.9]} 60... Ke5 {[%clk 0:00:41.6]} 61. b5 {[%clk 0:00:09.2]} 61...
Ke4 {[%clk 0:00:41.5]} 62. b6 {[%clk 0:00:08.7]} 62... Ke3 {[%clk 0:00:41.4]}
63. b7 {[%clk 0:00:08.2]} 63... Kf4 {[%clk 0:00:41.3]} 64. b8=Q+ {[%clk
0:00:07.3]} 64... Kg5 {[%clk 0:00:39.2]} 65. Qbd6 {[%clk 0:00:07]} 65... Kh5
{[%clk 0:00:36.8]} 66. Qd5+ {[%clk 0:00:06.7]} 66... Kh4 {[%clk 0:00:35.4]} 67.
Q7e6 {[%clk 0:00:06.4]} 67... Kg3 {[%clk 0:00:34.8]} 68. Qdf5 {[%clk 0:00:05.7]}
68... Kh4 {[%clk 0:00:33.1]} 69. Qeg6 {[%clk 0:00:05.4]} 1/2-1/2

[Event "Live Chess"]
[Site "Chess.com"]
[Date "2024.06.02"]
[Round "-"]
[White "Tushinskiy"]
[Black "asingardenof"]
[Result "1-0"]
[WhiteElo "2268"]
[BlackElo "626"]
[TimeControl "300"]
[EndTime "18:40:35 PDT"]
[Termination "Tushinskiy won by resignation"]

1. d4 {[%clk 0:04:56.8]} 1... Nf6 {[%clk 0:04:58.2]} 2. c3 {[%clk 0:04:56.7]}
2... g6 {[%clk 0:04:56.8]} 3. Nf3 {[%clk 0:04:56.6]} 3... Bg7 {[%clk 0:04:55.8]}
4. Bf4 {[%clk 0:04:56.5]} 4... d6 {[%clk 0:04:53.7]} 5. Bg3 {[%clk 0:04:56.4]}
5... Nc6 {[%clk 0:04:52]} 6. Nbd2 {[%clk 0:04:56.3]} 6... Bf5 {[%clk 0:04:47.7]}
7. Qb3 {[%clk 0:04:54.7]} 7... O-O {[%clk 0:04:44]} 8. Qxb7 {[%clk 0:04:52.6]}
8... e6 {[%clk 0:04:43.9]} 9. Qxc6 {[%clk 0:04:51.2]} 9... Qe8 {[%clk
0:04:38.5]} 10. Qxe8 {[%clk 0:04:49.7]} 10... Rfxe8 {[%clk 0:04:36]} 11. e3
{[%clk 0:04:49.6]} 11... Nd5 {[%clk 0:04:27.4]} 12. e4 {[%clk 0:04:46.9]} 12...
Bxe4 {[%clk 0:04:23.4]} 13. Nxe4 {[%clk 0:04:46.8]} 13... Nf6 {[%clk 0:04:22.8]}
14. Nxf6+ {[%clk 0:04:45.4]} 14... Bxf6 {[%clk 0:04:22.7]} 15. O-O-O {[%clk
0:04:44.4]} 15... e5 {[%clk 0:04:15.7]} 16. dxe5 {[%clk 0:04:08.1]} 16... dxe5
{[%clk 0:04:15.6]} 17. Bb5 {[%clk 0:04:06.6]} 17... Reb8 {[%clk 0:04:07.8]} 18.
Bc6 {[%clk 0:04:05.2]} 18... Rb6 {[%clk 0:03:49.1]} 19. Bxa8 {[%clk 0:04:03.5]}
1-0

[Event "Live Chess"]
[Site "Chess.com"]
[Date "2024.06.02"]
[Round "-"]
[White "ShanthamGrarks"]
[Black "grillage"]
[Result "1-0"]
[WhiteElo "1872"]
[BlackElo "1854"]
[TimeControl "300"]
[EndTime "18:41:40 PDT"]
[Termination "ShanthamGrarks won on time"]

1. d4 {[%clk 0:04:56.5]} 1... e6 {[%clk 0:04:58.6]} 2. Nc3 {[%clk 0:04:54.5]}
2... d5 {[%clk 0:04:51]} 3. e4 {[%clk 0:04:53.7]} 3... dxe4 {[%clk 0:04:46.5]}
4. f3 {[%clk 0:04:51.7]} 4... c5 {[%clk 0:04:24.5]} 5. Bb5+ {[%clk 0:04:43.1]}
5... Bd7 {[%clk 0:04:17.4]} 6. d5 {[%clk 0:04:40.3]} 6... Bxb5 {[%clk
0:04:10.8]} 7. Nxb5 {[%clk 0:04:37.2]} 7... Qa5+ {[%clk 0:04:02.9]} 8. Nc3
{[%clk 0:04:35]} 8... Nf6 {[%clk 0:03:36.1]} 9. dxe6 {[%clk 0:04:31.3]} 9...
fxe6 {[%clk 0:03:34.7]} 10. Bg5 {[%clk 0:04:28.5]} 10... Be7 {[%clk 0:03:31.3]}
11. fxe4 {[%clk 0:04:01.4]} 11... Nxe4 {[%clk 0:03:09.3]} 12. Bxe7 {[%clk
0:03:55.6]} 12... Kxe7 {[%clk 0:03:07.2]} 13. Ne2 {[%clk 0:03:48.9]} 13... Rf8
{[%clk 0:03:01.2]} 14. Rf1 {[%clk 0:03:39.9]} 14... Nc6 {[%clk 0:02:58.6]} 15.
Qd3 {[%clk 0:03:35.2]} 15... Nxc3 {[%clk 0:02:49]} 16. bxc3 {[%clk 0:03:24.4]}
16... Rxf1+ {[%clk 0:02:38.5]} 17. Kxf1 {[%clk 0:03:21.9]} 17... Rf8+ {[%clk
0:02:32]} 18. Kg1 {[%clk 0:03:20.4]} 18... g6 {[%clk 0:02:15.9]} 19. Qe3 {[%clk
0:03:16.4]} 19... Rf5 {[%clk 0:02:04.2]} 20. Ng3 {[%clk 0:03:10.2]} 20... Re5
{[%clk 0:02:01.4]} 21. Qh6 {[%clk 0:03:02.6]} 21... Qxc3 {[%clk 0:01:53.8]} 22.
Qxh7+ {[%clk 0:03:01.2]} 22... Kd6 {[%clk 0:01:52.7]} 23. Rd1+ {[%clk
0:02:59.9]} 23... Nd4 {[%clk 0:01:51.7]} 24. Qxb7 {[%clk 0:02:45.7]} 24... Re1+
{[%clk 0:01:37.6]} 25. Nf1 {[%clk 0:02:42.2]} 25... Rxd1 {[%clk 0:01:34.4]} 26.
Qb8+ {[%clk 0:02:35.1]} 26... Kd5 {[%clk 0:01:30.7]} 27. Qb7+ {[%clk 0:02:20.4]}
27... Ke5 {[%clk 0:01:20.4]} 28. Qg7+ {[%clk 0:02:16.4]} 28... Kd5 {[%clk
0:01:09]} 29. Qd7+ {[%clk 0:02:14.3]} 29... Kc4 {[%clk 0:01:08.1]} 30. Qa4+
{[%clk 0:02:12]} 30... Qb4 {[%clk 0:01:04.2]} 31. Qa6+ {[%clk 0:02:03]} 31...
Qb5 {[%clk 0:01:01.9]} 32. Qd6 {[%clk 0:01:34.2]} 32... Qb6 {[%clk 0:00:44.5]}
33. Qe5 {[%clk 0:01:17.7]} 33... Kb5 {[%clk 0:00:37.4]} 34. c3 {[%clk 0:01:06]}
34... Rxf1+ {[%clk 0:00:18.2]} 35. Kxf1 {[%clk 0:01:02.8]} 35... Nc6 {[%clk
0:00:16]} 36. Qe2+ {[%clk 0:00:58.8]} 36... Ka5 {[%clk 0:00:13.6]} 37. c4 {[%clk
0:00:57.3]} 37... Qb1+ {[%clk 0:00:11.3]} 38. Kf2 {[%clk 0:00:55.8]} 38... Qf5+
{[%clk 0:00:10.5]} 39. Kg1 {[%clk 0:00:53.6]} 39... Nd4 {[%clk 0:00:09.4]} 40.
Qd2+ {[%clk 0:00:51.6]} 40... Kb6 {[%clk 0:00:07.9]} 41. h3 {[%clk 0:00:49.6]}
41... Qb1+ {[%clk 0:00:04.7]} 42. Kh2 {[%clk 0:00:47.7]} 42... Qf5 {[%clk
0:00:03.2]} 43. Qb2+ {[%clk 0:00:46.5]} 43... Kc6 {[%clk 0:00:01.9]} 44. Qb8
{[%clk 0:00:35.3]} 44... Qe5+ {[%clk 0:00:01.5]} 45. Qxe5 {[%clk 0:00:33.8]} 1-0

[Event "Live Chess"]
[Site "Chess.com"]
[Date "2024.06.02"]
[Round "-"]
[White "WelshTiger"]
[Black "StoreySniper"]
[Result "1-0"]
[WhiteElo "2440"]
[BlackElo "2501"]
[TimeControl "300"]
[EndTime "18:41:57 PDT"]
[Termination "WelshTiger won by resignation"]

1. e4 {[%clk 0:04:58.1]} 1... g6 {[%clk 0:04:57.4]} 2. d4 {[%clk 0:04:57]} 2...
Bg7 {[%clk 0:04:57]} 3. Nc3 {[%clk 0:04:56.5]} 3... c5 {[%clk 0:04:56.2]} 4. d5
{[%clk 0:04:54.6]} 4... d6 {[%clk 0:04:54.8]} 5. h3 {[%clk 0:04:54]} 5... Bxc3+
{[%clk 0:04:52.8]} 6. bxc3 {[%clk 0:04:53.8]} 6... Nf6 {[%clk 0:04:52]} 7. f3
{[%clk 0:04:49.8]} 7... Qa5 {[%clk 0:04:50.8]} 8. Bd2 {[%clk 0:04:48.4]} 8... h5
{[%clk 0:04:46.7]} 9. Ne2 {[%clk 0:04:42.9]} 9... h4 {[%clk 0:04:43.8]} 10. Nf4
{[%clk 0:04:21.3]} 10... Nbd7 {[%clk 0:04:36.9]} 11. c4 {[%clk 0:04:11.4]} 11...
Qa4 {[%clk 0:04:32]} 12. c3 {[%clk 0:04:10.9]} 12... Qxd1+ {[%clk 0:04:26]} 13.
Kxd1 {[%clk 0:04:08.8]} 13... b6 {[%clk 0:04:25.2]} 14. Nd3 {[%clk 0:03:42.4]}
14... a5 {[%clk 0:04:14.7]} 15. a4 {[%clk 0:03:39.8]} 15... Ba6 {[%clk
0:04:10.4]} 16. Nb2 {[%clk 0:03:38.3]} 16... Kd8 {[%clk 0:04:07.1]} 17. Kc2
{[%clk 0:03:33.4]} 17... Kc7 {[%clk 0:04:04.7]} 18. Kb3 {[%clk 0:03:32.5]} 18...
Nh5 {[%clk 0:03:54.8]} 19. Bd3 {[%clk 0:03:28.7]} 19... Ne5 {[%clk 0:03:52.1]}
20. Bc2 {[%clk 0:03:21.6]} 20... Ng3 {[%clk 0:03:48]} 21. Rhe1 {[%clk
0:03:19.2]} 21... Rag8 {[%clk 0:03:30.8]} 22. f4 {[%clk 0:03:17.5]} 22... Nd7
{[%clk 0:03:29.9]} 23. e5 {[%clk 0:03:15.7]} 23... dxe5 {[%clk 0:03:18.8]} 24.
fxe5 {[%clk 0:03:14.1]} 24... g5 {[%clk 0:03:17.8]} 25. e6 {[%clk 0:03:08.6]}
25... fxe6 {[%clk 0:03:15.7]} 26. Rxe6 {[%clk 0:03:07.6]} 26... Rg7 {[%clk
0:03:00.9]} 27. Rae1 {[%clk 0:03:06.3]} 27... Kd8 {[%clk 0:02:46.9]} 28. Rxe7
{[%clk 0:02:57.5]} 28... Rxe7 {[%clk 0:02:36.8]} 29. Bxg5 {[%clk 0:02:56.2]}
29... Kc8 {[%clk 0:02:27.8]} 30. Rxe7 {[%clk 0:02:52.6]} 30... Rh5 {[%clk
0:02:20.1]} 31. Bf4 {[%clk 0:02:46.5]} 31... Nf5 {[%clk 0:01:57.2]} 32. Re8+
{[%clk 0:02:42.9]} 32... Kb7 {[%clk 0:01:53.2]} 33. d6 {[%clk 0:02:40.8]} 33...
Nd4+ {[%clk 0:01:37.4]} 34. cxd4 {[%clk 0:02:35.9]} 34... cxd4 {[%clk
0:01:37.3]} 35. Be4+ {[%clk 0:02:34.7]} 1-0

[Event "Live Chess"]
[Site "Chess.com"]
[Date "2024.06.02"]
[Round "-"]
[White "lyricalschemes"]
[Black "booktrunk"]
[Result "1-0"]
[WhiteElo "2231"]
[BlackElo "1504"]
[TimeControl "300"]
[EndTime "18:42:17 PDT"]
[Termination "lyricalschemes won by resignation"]

1. e4 {[%clk 0:04:58.5]} 1... b6 {[%clk 0:04:48.1]} 2. d4 {[%clk 0:04:55.7]}
2... Bb7 {[%clk 0:04:44.2]} 3. Bd3 {[%clk 0:04:55.1]} 3... e6 {[%clk 0:04:42.7]}
4. c3 {[%clk 0:04:54.2]} 4... h6 {[%clk 0:04:41.4]} 5. Nf3 {[%clk 0:04:52]} 5...
Nf6 {[%clk 0:04:39.3]} 6. e5 {[%clk 0:04:49.1]} 6... Nh7 {[%clk 0:04:34.8]} 7.
O-O {[%clk 0:04:44.6]} 7... d6 {[%clk 0:04:31.3]} 8. Re1 {[%clk 0:04:42.4]} 8...
dxe5 {[%clk 0:04:30]} 9. Nxe5 {[%clk 0:04:41.4]} 9... Be7 {[%clk 0:04:22.3]} 10.
Qh5 {[%clk 0:04:37.3]} 10... O-O {[%clk 0:03:50.7]} 11. Qg4 {[%clk 0:04:18.9]}
11... Bg5 {[%clk 0:03:47.8]} 12. f4 {[%clk 0:04:12.9]} 12... f5 {[%clk
0:03:32.3]} 13. Qh5 {[%clk 0:04:05]} 13... Bf6 {[%clk 0:03:29.2]} 14. Bc4 {[%clk
0:03:59.3]} 14... Bd5 {[%clk 0:03:20.4]} 15. Bxd5 {[%clk 0:03:52.3]} 15... Qxd5
{[%clk 0:03:19]} 16. Na3 {[%clk 0:03:44.7]} 16... Qd8 {[%clk 0:03:16.9]} 17. Qf3
{[%clk 0:03:32.2]} 17... Nd7 {[%clk 0:03:08.9]} 18. Nc6 {[%clk 0:03:29.6]} 18...
Qe8 {[%clk 0:03:07.6]} 19. d5 {[%clk 0:03:28.2]} 19... Nc5 {[%clk 0:03:03.9]}
20. dxe6 {[%clk 0:03:26.4]} 20... Nxe6 {[%clk 0:02:59]} 21. Qd5 {[%clk
0:03:22.4]} 21... Kh8 {[%clk 0:02:47.3]} 22. Qxe6 {[%clk 0:03:14.7]} 22... Qxe6
{[%clk 0:02:45.7]} 23. Rxe6 {[%clk 0:03:12.5]} 23... Rf7 {[%clk 0:02:39.2]} 24.
Ne5 {[%clk 0:03:03.5]} 24... Bxe5 {[%clk 0:02:36.9]} 25. Rxe5 {[%clk 0:02:59.9]}
25... Nf8 {[%clk 0:02:35.8]} 26. Bd2 {[%clk 0:02:58]} 26... Ng6 {[%clk
0:02:34.6]} 27. Re2 {[%clk 0:02:56.2]} 27... Re7 {[%clk 0:02:31.1]} 28. Rae1
{[%clk 0:02:53.3]} 28... Rxe2 {[%clk 0:02:29.2]} 29. Rxe2 {[%clk 0:02:53.2]}
29... Rd8 {[%clk 0:02:26.6]} 30. Nc4 {[%clk 0:02:51.2]} 30... b5 {[%clk
0:02:24.3]} 31. Ne5 {[%clk 0:02:48.4]} 31... Nxe5 {[%clk 0:02:21.8]} 32. fxe5
{[%clk 0:02:48.3]} 32... Kg8 {[%clk 0:02:19.9]} 33. Kf2 {[%clk 0:02:47.2]} 33...
Kf7 {[%clk 0:02:18.6]} 34. e6+ {[%clk 0:02:46]} 34... Ke7 {[%clk 0:02:17.2]} 35.
Be3 {[%clk 0:02:44.6]} 35... a6 {[%clk 0:02:14.8]} 36. Bc5+ {[%clk 0:02:43.5]}
36... Ke8 {[%clk 0:02:13.5]} 37. Ke3 {[%clk 0:02:35.8]} 37... Rd5 {[%clk
0:02:11.9]} 38. b4 {[%clk 0:02:34.1]} 38... Re5+ {[%clk 0:02:09]} 39. Kf3 {[%clk
0:02:33]} 39... Rxe2 {[%clk 0:02:05.8]} 40. Kxe2 {[%clk 0:02:32.1]} 40... g6
{[%clk 0:02:03.8]} 41. Ke3 {[%clk 0:02:30.9]} 41... h5 {[%clk 0:02:03.2]} 42.
Kd4 {[%clk 0:02:30.2]} 42... g5 {[%clk 0:02:02.5]} 43. Ke5 {[%clk 0:02:29.7]}
1-0

[Event "Live Chess"]
[Site "Chess.com"]
[Date "2024.06.02"]
[Round "-"]
[White "asingardenof"]
[Black "oscalik"]
[Result "0-1"]
[WhiteElo "626"]
[BlackElo "2261"]
[TimeControl "300"]
[EndTime "18:43:01 PDT"]
[Termination "oscalik won by checkmate"]

1. e3 {[%clk 0:04:54.6]} 1... e5 {[%clk 0:04:58.1]} 2. Ke2 {[%clk 0:04:54.5]}
2... d5 {[%clk 0:04:57.2]} 3. Nc3 {[%clk 0:04:52.6]} 3... c5 {[%clk 0:04:54.8]}
4. Nf3 {[%clk 0:04:52.5]} 4... Nc6 {[%clk 0:04:53.9]} 5. d4 {[%clk 0:04:52.4]}
5... cxd4 {[%clk 0:04:52.6]} 6. exd4 {[%clk 0:04:51.4]} 6... exd4 {[%clk
0:04:51.3]} 7. Nxd4 {[%clk 0:04:50.5]} 7... Bc5 {[%clk 0:04:50.8]} 8. Be3 {[%clk
0:04:47.2]} 8... Bg4+ {[%clk 0:04:46.7]} 9. f3 {[%clk 0:04:45.3]} 9... Nxd4+
{[%clk 0:04:44.5]} 10. Ke1 {[%clk 0:04:44]} 10... Qe7 {[%clk 0:04:38.7]} 11.
Nxd5 {[%clk 0:04:41.1]} 11... Qe5 {[%clk 0:04:29.4]} 12. Bc4 {[%clk 0:04:36.1]}
12... O-O-O {[%clk 0:04:25.8]} 13. Qd3 {[%clk 0:04:29.5]} 13... Nf6 {[%clk
0:04:18.8]} 14. h3 {[%clk 0:04:16.8]} 14... Nxd5 {[%clk 0:04:15.4]} 15. hxg4
{[%clk 0:04:08]} 15... Nxe3 {[%clk 0:04:13.1]} 16. Rh5 {[%clk 0:04:05.6]} 16...
Nexc2+ {[%clk 0:04:06.6]} 17. Kd2 {[%clk 0:04:00.2]} 17... Qf4+ {[%clk
0:04:05.3]} 18. Kc3 {[%clk 0:03:52.7]} 18... Bb4# {[%clk 0:04:04.5]} 0-1

[Event "Live Chess"]
[Site "Chess.com"]
[Date "2024.06.02"]
[Round "-"]
[White "Harry_Li"]
[Black "Frankie_Badacsonyi"]
[Result "1/2-1/2"]
[WhiteElo "2131"]
[BlackElo "2405"]
[TimeControl "300"]
[EndTime "18:43:06 PDT"]
[Termination "Game drawn by repetition"]

1. e4 {[%clk 0:04:58.1]} 1... c6 {[%clk 0:04:55.9]} 2. d4 {[%clk 0:04:57.3]}
2... d5 {[%clk 0:04:54.2]} 3. e5 {[%clk 0:04:57]} 3... Bf5 {[%clk 0:04:52.4]} 4.
Nf3 {[%clk 0:04:56.2]} 4... e6 {[%clk 0:04:51.6]} 5. Be2 {[%clk 0:04:55.7]} 5...
Ne7 {[%clk 0:04:50.8]} 6. O-O {[%clk 0:04:54.9]} 6... Ng6 {[%clk 0:04:50]} 7.
Ne1 {[%clk 0:04:44.9]} 7... h5 {[%clk 0:04:47.6]} 8. Bxh5 {[%clk 0:04:42.4]}
8... Qh4 {[%clk 0:04:45.9]} 9. g4 {[%clk 0:04:29]} 9... Bxg4 {[%clk 0:04:42.5]}
10. Qxg4 {[%clk 0:04:27]} 10... Qxh5 {[%clk 0:04:41.7]} 11. Qxh5 {[%clk
0:04:24.1]} 11... Rxh5 {[%clk 0:04:41.6]} 12. f4 {[%clk 0:04:20.6]} 12... Ne7
{[%clk 0:04:39]} 13. Nf3 {[%clk 0:04:09.6]} 13... Nf5 {[%clk 0:04:37.8]} 14. Bd2
{[%clk 0:04:02.1]} 14... c5 {[%clk 0:04:36.9]} 15. c3 {[%clk 0:04:00.6]} 15...
Nc6 {[%clk 0:04:35.5]} 16. dxc5 {[%clk 0:03:53.7]} 16... Bxc5+ {[%clk
0:04:35.4]} 17. Kg2 {[%clk 0:03:51.8]} 17... Ke7 {[%clk 0:04:29.5]} 18. b4
{[%clk 0:03:50.6]} 18... Bb6 {[%clk 0:04:28.3]} 19. a4 {[%clk 0:03:49.2]} 19...
Rah8 {[%clk 0:04:18.8]} 20. a5 {[%clk 0:03:46]} 20... Be3 {[%clk 0:04:17.6]} 21.
Re1 {[%clk 0:03:37.5]} 21... Bxd2 {[%clk 0:04:14.5]} 22. Nbxd2 {[%clk
0:03:37.4]} 22... Nh4+ {[%clk 0:04:02.4]} 23. Kf2 {[%clk 0:03:34.9]} 23... Nxf3
{[%clk 0:03:58.2]} 24. Nxf3 {[%clk 0:03:34.8]} 24... g6 {[%clk 0:03:39.6]} 25.
h4 {[%clk 0:03:27]} 25... Rc8 {[%clk 0:03:35.7]} 26. Kg3 {[%clk 0:03:19.2]}
26... Rhh8 {[%clk 0:03:30.8]} 27. b5 {[%clk 0:03:03.2]} 27... Nb8 {[%clk
0:03:29.1]} 28. Rec1 {[%clk 0:02:57.5]} 28... Nd7 {[%clk 0:03:27.6]} 29. a6
{[%clk 0:02:49.8]} 29... b6 {[%clk 0:03:26.6]} 30. Nd4 {[%clk 0:02:48.5]} 30...
Rc7 {[%clk 0:03:19.9]} 31. Nc6+ {[%clk 0:02:46]} 31... Kf8 {[%clk 0:03:18.9]}
32. c4 {[%clk 0:02:44.2]} 32... dxc4 {[%clk 0:03:14]} 33. Rxc4 {[%clk
0:02:44.1]} 33... Nc5 {[%clk 0:03:13]} 34. Rd1 {[%clk 0:02:39.9]} 34... Kg7
{[%clk 0:03:10.2]} 35. Rcd4 {[%clk 0:02:32]} 35... Rhc8 {[%clk 0:02:44.5]} 36.
Kg4 {[%clk 0:02:28.5]} 36... Nxa6 {[%clk 0:02:35]} 37. Ra4 {[%clk 0:01:39.7]}
37... Nc5 {[%clk 0:02:18.3]} 38. Rxa7 {[%clk 0:01:38.4]} 38... Rxa7 {[%clk
0:02:15.5]} 39. Nxa7 {[%clk 0:01:38.3]} 39... Ra8 {[%clk 0:02:14.5]} 40. Nc6
{[%clk 0:01:36]} 40... Ra4 {[%clk 0:02:06.9]} 41. Rd8 {[%clk 0:01:30.7]} 41...
Ra2 {[%clk 0:01:35.5]} 42. Rb8 {[%clk 0:01:28.4]} 42... Na4 {[%clk 0:01:33.2]}
43. Ne7 {[%clk 0:01:20.7]} 43... Rg2+ {[%clk 0:01:27]} 44. Kf3 {[%clk
0:01:19.7]} 44... Rb2 {[%clk 0:01:26]} 45. Ng8 {[%clk 0:01:17.4]} 45... Rxb5
{[%clk 0:00:54.4]} 46. Nf6 {[%clk 0:01:16.3]} 46... Rb2 {[%clk 0:00:53.2]} 47.
Rg8+ {[%clk 0:00:27.2]} 47... Kh6 {[%clk 0:00:51.9]} 48. Rh8+ {[%clk 0:00:25.6]}
48... Kg7 {[%clk 0:00:50.9]} 49. Rh7+ {[%clk 0:00:23.2]} 49... Kf8 {[%clk
0:00:48.2]} 50. Rh8+ {[%clk 0:00:17.3]} 50... Kg7 {[%clk 0:00:46.4]} 51. Rh7+
{[%clk 0:00:16.5]} 51... Kf8 {[%clk 0:00:45.4]} 52. Rh8+ {[%clk 0:00:13.9]}
52... Kg7 {[%clk 0:00:44.3]} 1/2-1/2

[Event "Live Chess"]
[Site "Chess.com"]
[Date "2024.06.02"]
[Round "-"]
[White "Mikhail_Golubev"]
[Black "juniortay"]
[Result "1-0"]
[WhiteElo "2575"]
[BlackElo "2418"]
[TimeControl "300"]
[EndTime "18:43:17 PDT"]
[Termination "Mikhail_Golubev won by resignation"]

1. e4 {[%clk 0:04:57.2]} 1... e5 {[%clk 0:04:59]} 2. Nf3 {[%clk 0:04:54.5]} 2...
Nf6 {[%clk 0:04:58.4]} 3. Nc3 {[%clk 0:04:52.4]} 3... Nc6 {[%clk 0:04:57.9]} 4.
g3 {[%clk 0:04:49.4]} 4... Nxe4 {[%clk 0:04:55.8]} 5. Nxe4 {[%clk 0:04:46.2]}
5... d5 {[%clk 0:04:55.2]} 6. Bd3 {[%clk 0:04:28.2]} 6... dxe4 {[%clk
0:04:53.5]} 7. Bxe4 {[%clk 0:04:26.9]} 7... Bd6 {[%clk 0:04:53.1]} 8. O-O {[%clk
0:04:14.9]} 8... O-O {[%clk 0:04:52.3]} 9. d4 {[%clk 0:04:06.1]} 9... exd4
{[%clk 0:04:40.1]} 10. Nxd4 {[%clk 0:03:31.7]} 10... Bd7 {[%clk 0:04:38.3]} 11.
Nxc6 {[%clk 0:03:23.1]} 11... bxc6 {[%clk 0:04:37]} 12. Qf3 {[%clk 0:03:13.4]}
12... Re8 {[%clk 0:04:26.1]} 13. Bxc6 {[%clk 0:03:04.1]} 13... Bxc6 {[%clk
0:04:24.5]} 14. Qxc6 {[%clk 0:03:04]} 14... Qf6 {[%clk 0:04:23.3]} 15. c3 {[%clk
0:02:55.7]} 15... Rab8 {[%clk 0:04:20.8]} 16. Be3 {[%clk 0:02:52.2]} 16... a5
{[%clk 0:04:12.8]} 17. Bd4 {[%clk 0:02:39.2]} 17... Qe6 {[%clk 0:04:09.1]} 18.
b3 {[%clk 0:02:29.7]} 18... h5 {[%clk 0:03:53.8]} 19. Rae1 {[%clk 0:02:11.9]}
19... Qxe1 {[%clk 0:03:49.3]} 20. Rxe1 {[%clk 0:02:11.8]} 20... Rxe1+ {[%clk
0:03:48.2]} 21. Kg2 {[%clk 0:02:11.5]} 21... Rbe8 {[%clk 0:03:45.2]} 22. Qd5
{[%clk 0:01:57.4]} 22... R1e2 {[%clk 0:02:57.1]} 23. Qxa5 {[%clk 0:01:33.1]}
23... c5 {[%clk 0:02:51.9]} 24. Bxc5 {[%clk 0:01:16.2]} 24... R2e5 {[%clk
0:02:42.8]} 25. b4 {[%clk 0:01:15.1]} 25... Bxc5 {[%clk 0:02:40.6]} 26. bxc5
{[%clk 0:01:14.4]} 26... Rc8 {[%clk 0:02:39.9]} 27. a4 {[%clk 0:01:03.8]} 27...
Rexc5 {[%clk 0:02:37.2]} 28. Qb4 {[%clk 0:00:49.1]} 28... Rc4 {[%clk 0:02:33.8]}
29. Qb7 {[%clk 0:00:45.3]} 29... R4c7 {[%clk 0:02:28.9]} 30. Qb5 {[%clk
0:00:41.5]} 30... Rc5 {[%clk 0:02:27.7]} 31. Qb7 {[%clk 0:00:39.1]} 31... R5c7
{[%clk 0:01:41.9]} 32. Qb5 {[%clk 0:00:37.9]} 32... Rxc3 {[%clk 0:01:30.7]} 33.
Qxh5 {[%clk 0:00:36.5]} 33... Rc2 {[%clk 0:01:23.8]} 34. Qf5 {[%clk 0:00:35.1]}
34... R8c4 {[%clk 0:01:16.3]} 35. Qd7 {[%clk 0:00:32.5]} 35... Ra2 {[%clk
0:01:11.4]} 36. Qd8+ {[%clk 0:00:30]} 36... Kh7 {[%clk 0:01:03.5]} 37. Qd3+
{[%clk 0:00:29.9]} 37... g6 {[%clk 0:01:01.6]} 38. Qxc4 {[%clk 0:00:29.5]} 1-0